fUST/lending_fUST_20241127
["ID","MTS","AMOUNT","RATE_DAILY","PERIOD"]
[343470012,1732645849728,-152.65,0.000293,31]
[343470013,1732645849737,-152.65,0.000293,31]
[343470014,1732645849749,-152.65,0.000293,31]
[343470015,1732645849759,-271.63368817,0.00029308,3]
[343470016,1732645849768,-481.73653992,0.00029309,3]
[343470017,1732645849777,-500.0,0.00029309,3]
[343470018,1732645849787,-500.0,0.00029309,3]
[343470019,1732645849797,-500.0,0.00029309,3]
[343470020,1732645849812,-573.29026741,0.00029309,3]
[343470021,1732645849822,-500.0,0.00029309,3]
[343470022,1732645849831,-511.54931764,0.00029309,3]
[343470023,1732645849840,-500.0,0.00029309,3]
[343470024,1732645849850,-500.0,0.00029309,3]
[343470025,1732645849859,-184.07904427,0.00029309,3]
[343470026,1732645849870,-346.86,0.00029309,3]
[343470027,1732645849879,-500.0,0.00029309,3]
[343470028,1732645849889,-500.0,0.00029309,3]
[343470029,1732645849899,-500.0,0.00029309,3]
[343470030,1732645849909,-500.0,0.00029309,3]
[343470031,1732645849919,-500.0,0.00029309,3]
[343470032,1732645849929,-500.0,0.00029309,3]
[343470033,1732645849939,-500.0,0.00029309,3]
[343470034,1732645849948,-500.0,0.00029309,3]
[343470035,1732645849958,-500.0,0.00029309,3]
[343470036,1732645849968,-500.0,0.00029309,3]
[343470037,1732645849978,-500.0,0.00029309,3]
[343470038,1732645849988,-608.84,0.00029309,3]
[343470039,1732645850003,-500.0,0.00029309,3]
[343470040,1732645850012,-500.0,0.00029309,3]
[343470041,1732645850022,-500.0,0.00029309,3]
[343470042,1732645850031,-500.0,0.00029309,3]
[343470043,1732645850040,-500.0,0.00029309,3]
[343470044,1732645850050,-322.26074006,0.00029309,3]
[343470045,1732645850060,-230000.0,0.0002931,2]
[343470046,1732645850069,-577.6469922,0.00029321,2]
[343470047,1732645850079,-222000.0,0.00029322,2]
[343470048,1732645850088,-612.161276,0.00029335,2]
[343470049,1732645850098,-479.16046145,0.00029399,3]
[343470050,1732645850109,-500.0,0.00029399,3]
[343470051,1732645850120,-332.16,0.00029399,3]
[343470052,1732645850140,-500.0,0.00029399,3]
[343470053,1732645850156,-151.0,0.00029399,7]
[343470054,1732645850166,-8272.59741328,0.000294,7]
[343470055,1732645850176,-156.88,0.00029422,3]
[343470056,1732645850186,-500.0,0.00029422,3]
[343470057,1732645850196,-379.92,0.00029422,3]
[343470058,1732645850205,-655.156,0.00029463,2]
[343470059,1732645850215,-2378.0,0.00029463,2]
[343470060,1732645850225,-1115.683,0.00029463,2]
[343470061,1732645850235,-10108.60358459,0.00029542,2]
[343470062,1732645850248,-2019.17,0.000296,2]
[343470063,1732645850257,-186.0,0.000296,2]
[343470064,1732645850267,-618.0,0.000296,2]
[343470065,1732645850277,-666.0,0.00029676,2]
[343470066,1732645850287,-155.57058402,0.00029687,2]
[343470067,1732645850297,-210.9,0.000297,2]
[343470068,1732645850306,-187.0,0.000297,2]
[343470069,1732645850316,-226.541501,0.000297,2]
[343470070,1732645850326,-829.372947,0.000297,2]
[343470071,1732645850335,-612.161276,0.00029702,2]
[343470072,1732645850346,-150.01,0.00029771,2]
[343470073,1732645850355,-1384.11355635,0.00029771,2]
[343470074,1732645850364,-500.0,0.00029772,11]
[343470075,1732645850375,-500.0,0.00029776,7]
[343470076,1732645850386,-500.0,0.00029776,7]
[343470077,1732645850396,-500.0,0.00029776,7]
[343470078,1732645850407,-500.0,0.00029776,7]
[343470079,1732645850417,-263.90883388,0.00029776,7]
[343470080,1732645850427,-460.92762151,0.00029776,7]
[343470081,1732645850439,-151.0,0.00029776,10]
[343470082,1732645850448,-214.12658332,0.00029776,10]
[343470083,1732645850458,-500.0,0.00029776,10]
[343470084,1732645850468,-251.51827737,0.00029776,10]
[343470085,1732645850479,-158.19622171,0.00029776,10]
[343470086,1732645850489,-151.0,0.00029776,10]
[343470087,1732645850500,-150.15,0.00029776,10]
[343470088,1732645850510,-150.15,0.00029776,2]
[343470089,1732645850519,-150.15,0.00029776,10]
[343470090,1732645850529,-150.15,0.00029776,10]
[343470091,1732645850541,-500.0,0.00029776,10]
[343470092,1732645850551,-500.0,0.00029776,10]
[343470093,1732645850562,-150.15,0.00029776,2]
[343470094,1732645850573,-152.75641748,0.00029776,10]
[343470095,1732645850586,-156.97404156,0.00029776,10]
[343470096,1732645850596,-151.0,0.0002978,7]
[343470097,1732645850605,-151.0,0.0002978,7]
[343470098,1732645850615,-151.0,0.0002978,7]
[343470099,1732645850624,-151.0,0.0002978,7]
[343470100,1732645850634,-151.0,0.0002978,7]
[343470101,1732645850643,-168.199835,0.0002978,7]
[343470102,1732645850654,-386903.25025763,0.00029788,10]
[343470103,1732645850672,-41088.55801951,0.00029788,10]
[343470121,1732646124698,164.278772,0.00013973,2]
[343470293,1732646842140,-4469.11443195,0.00024882,2]
[343470294,1732646843118,-286.64612045,0.00024882,2]
[343470295,1732646843142,-6800.0,0.00025205,2]
[343470296,1732646843165,-157.623,0.00025205,9]
[343470297,1732646843194,-47.52519897,0.00025563,2]
[343470306,1732646978721,163.677884,0.00013973,2]
[343470334,1732647031937,-117.58466203,0.00025563,2]
[343470336,1732647031947,-602.10570162,0.00025596,2]
[343470338,1732647031957,-577.92464804,0.00025693,2]
[343470340,1732647031966,-300.0,0.00025693,2]
[343470342,1732647031975,-300.0,0.00025693,2]
[343470344,1732647031985,-2872.33066632,0.00025693,2]
[343470351,1732647032081,-877.55305,0.00025693,2]
[343470352,1732647032094,-441.16836,0.00025693,2]
[343470353,1732647032106,-57618.94792368,0.00025693,2]
[343470354,1732647032116,-24900.0,0.00025696,2]
[343470355,1732647032125,-423.0757369,0.00025831,2]
[343470356,1732647032135,-250.178784,0.00025831,2]
[343470357,1732647032145,-602.10570158,0.00026178,2]
[343470358,1732647032154,-167.405134,0.00026668,2]
[343470359,1732647032163,-602.10570158,0.0002676,2]
[343470360,1732647032174,-158.56464448,0.00026973,2]
[343470361,1732647032186,-270.9,0.0002698,3]
[343470362,1732647032196,-812.7,0.0002698,3]
[343470363,1732647032206,-1276.97,0.0002698,10]
[343470364,1732647032216,-1064.14,0.0002698,10]
[343470365,1732647032226,-886.79,0.0002698,10]
[343470366,1732647032235,-13298.10724461,0.0002699,2]
[343470367,1732647032247,-3836.48557331,0.0002699,2]
[343470368,1732647032259,-17573.63514072,0.0002699,2]
[343470369,1732647032269,-235.73307692,0.00026999,2]
[343470370,1732647032279,-213.16191673,0.00026999,2]
[343470371,1732647032289,-500.0,0.00026999,2]
[343470372,1732647032302,-500.0,0.00026999,2]
[343470373,1732647032312,-376.59367862,0.00026999,2]
[343470374,1732647032322,-155.94820556,0.00026999,2]
[343470375,1732647032332,-500.0,0.00026999,2]
[343470376,1732647032341,-500.0,0.00026999,2]
[343470377,1732647032351,-345.72292403,0.00026999,2]
[343470378,1732647032361,-191.24842212,0.00026999,2]
[343470379,1732647032371,-206.90796274,0.00026999,2]
[343470380,1732647032381,-500.0,0.00026999,2]
[343470381,1732647032390,-500.0,0.00026999,2]
[343470382,1732647032400,-500.0,0.00026999,2]
[343470383,1732647032409,-500.0,0.00026999,2]
[343470384,1732647032418,-500.0,0.00026999,2]
[343470385,1732647032430,-500.0,0.00026999,2]
[343470386,1732647032440,-500.0,0.00026999,2]
[343470387,1732647032449,-500.0,0.00026999,2]
[343470388,1732647032459,-500.0,0.00026999,2]
[343470389,1732647032468,-500.0,0.00026999,2]
[343470390,1732647032481,-300.0,0.00026999,2]
[343470391,1732647032496,-500.0,0.00026999,2]
[343470392,1732647032505,-500.0,0.00026999,2]
[343470393,1732647032515,-500.0,0.00026999,2]
[343470394,1732647032527,-500.0,0.00026999,2]
[343470395,1732647032536,-500.0,0.00026999,2]
[343470396,1732647032546,-279.67509801,0.00026999,2]
[343470397,1732647032557,-500.0,0.00026999,2]
[343470398,1732647032567,-500.0,0.00026999,2]
[343470399,1732647032576,-188.99092769,0.00026999,2]
[343470400,1732647032588,-300.0,0.00026999,2]
[343470401,1732647032598,-500.0,0.00026999,2]
[343470402,1732647032608,-500.0,0.00026999,2]
[343470403,1732647032618,-500.0,0.00026999,2]
[343470404,1732647032629,-500.0,0.00026999,2]
[343470405,1732647032639,-500.0,0.00026999,2]
[343470406,1732647032648,-500.0,0.00026999,2]
[343470407,1732647032658,-500.0,0.00026999,2]
[343470408,1732647032667,-500.0,0.00026999,2]
[343470409,1732647032678,-500.0,0.00026999,2]
[343470410,1732647032687,-200.0,0.00026999,2]
[343470411,1732647032697,-500.0,0.00026999,2]
[343470412,1732647032707,-500.0,0.00026999,2]
[343470413,1732647032716,-500.0,0.00026999,2]
[343470414,1732647032725,-396.95598748,0.00026999,2]
[343470415,1732647032735,-500.0,0.00026999,2]
[343470416,1732647032747,-274.01826215,0.00026999,2]
[343470417,1732647032757,-500.0,0.00026999,2]
[343470418,1732647032766,-500.0,0.00026999,2]
[343470419,1732647032775,-500.0,0.00026999,2]
[343470420,1732647032785,-500.0,0.00026999,2]
[343470421,1732647032795,-500.0,0.00026999,2]
[343470422,1732647032805,-500.0,0.00026999,2]
[343470423,1732647032814,-500.0,0.00026999,2]
[343470424,1732647032824,-500.0,0.00026999,2]
[343470425,1732647032834,-500.0,0.00026999,2]
[343470426,1732647032845,-530.0,0.00026999,2]
[343470427,1732647032854,-500.0,0.00026999,2]
[343470428,1732647032864,-500.0,0.00026999,2]
[343470429,1732647032874,-500.0,0.00026999,2]
[343470430,1732647032883,-500.0,0.00026999,2]
[343470431,1732647032894,-500.0,0.00026999,2]
[343470432,1732647032906,-500.0,0.00026999,2]
[343470433,1732647032916,-574.559628,0.00026999,2]
[343470434,1732647032925,-500.0,0.00026999,2]
[343470435,1732647032937,-500.0,0.00026999,2]
[343470436,1732647032947,-500.0,0.00026999,2]
[343470437,1732647032956,-500.0,0.00026999,2]
[343470438,1732647032965,-500.0,0.00026999,2]
[343470439,1732647032974,-500.0,0.00026999,2]
[343470440,1732647032983,-500.0,0.00026999,2]
[343470441,1732647032993,-500.0,0.00026999,2]
[343470442,1732647033002,-500.0,0.00026999,2]
[343470443,1732647033012,-500.0,0.00026999,2]
[343470444,1732647033022,-500.0,0.00026999,2]
[343470445,1732647033032,-500.0,0.00026999,2]
[343470446,1732647033042,-500.0,0.00026999,2]
[343470447,1732647033052,-500.0,0.00026999,2]
[343470448,1732647033062,-500.0,0.00026999,2]
[343470449,1732647033073,-500.0,0.00026999,2]
[343470450,1732647033083,-500.0,0.00026999,2]
[343470451,1732647033092,-500.0,0.00026999,2]
[343470452,1732647033102,-500.0,0.00026999,2]
[343470453,1732647033113,-500.0,0.00026999,2]
[343470454,1732647033123,-207.37323104,0.00026999,2]
[343470455,1732647033133,-500.0,0.00026999,2]
[343470456,1732647033143,-500.0,0.00026999,2]
[343470457,1732647033153,-500.0,0.00026999,2]
[343470458,1732647033163,-500.0,0.00026999,2]
[343470459,1732647033173,-500.0,0.00026999,2]
[343470460,1732647033186,-500.0,0.00026999,2]
[343470461,1732647033196,-5249.47553762,0.00027,2]
[343470549,1732647038134,-18225.52696715,0.00027,2]
[343470567,1732647038311,-4436.169696,0.00027,2]
[343470569,1732647038324,-72028.8583549,0.00027,2]
[343470571,1732647038335,-164.0,0.00027,2]
[343470573,1732647038346,-466.89794477,0.000271,2]
[343470575,1732647038357,-163.00146831,0.000272,2]
[343470577,1732647038367,-602.10570158,0.00027342,2]
[343470579,1732647038376,-738.99,0.00027387,10]
[343470581,1732647038386,-500.0,0.00027397,3]
[343470583,1732647038395,-501.45279911,0.00027397,3]
[343470585,1732647038405,-509.67581729,0.00027397,3]
[343470587,1732647038415,-503.18811885,0.00027397,3]
[343470589,1732647038424,-511.38684024,0.00027397,3]
[343470591,1732647038438,-152.52510885,0.00027397,3]
[343470593,1732647038447,-500.0,0.00027397,2]
[343470595,1732647038457,-500.0,0.00027397,3]
[343470597,1732647038467,-500.0,0.00027397,3]
[343470599,1732647038476,-500.0,0.00027397,3]
[343470601,1732647038490,-500.0,0.00027397,3]
[343470603,1732647038499,-194.83030146,0.00027397,3]
[343470605,1732647038509,-601.11594164,0.00027397,3]
[343470607,1732647038518,-500.0,0.00027397,3]
[343470609,1732647038529,-500.0,0.00027397,3]
[343470611,1732647038539,-500.0,0.00027397,3]
[343470613,1732647038549,-319.37,0.00027397,3]
[343470615,1732647038558,-1626.22,0.00027397,3]
[343470617,1732647038568,-1626.22,0.00027397,3]
[343470619,1732647038578,-1626.22,0.00027397,3]
[343470621,1732647038587,-1626.22,0.00027397,3]
[343470625,1732647038608,-1626.22,0.00027397,3]
[343470627,1732647038619,-502.31558681,0.00027397,3]
[343470629,1732647038630,-1626.22,0.00027397,3]
[343470631,1732647038640,-29.96601621,0.00027397,3]
[343470634,1732647038656,-1596.25398379,0.00027397,3]
[343470636,1732647038666,-1626.22,0.00027397,3]
[343470638,1732647038675,-1626.22,0.00027397,3]
[343470640,1732647038688,-163.677884,0.00027641,2]
[343470642,1732647038698,-164.0,0.00027671,2]
[343470644,1732647038708,-500.0,0.000277,5]
[343470646,1732647038718,-420.0,0.00027814,2]
[343470648,1732647038728,-602.10570158,0.00027925,2]
[343470650,1732647038738,-500.0,0.00028248,5]
[343470652,1732647038748,-500.0,0.00028258,3]
[343470654,1732647038757,-503.4274978,0.00028258,3]
[343470656,1732647038767,-500.0,0.00028258,3]
[343470658,1732647038776,-500.0,0.00028258,3]
[343470660,1732647038785,-500.0,0.00028258,3]
[343470662,1732647038794,-500.0,0.00028258,3]
[343470664,1732647038804,-500.0,0.00028258,3]
[343470666,1732647038814,-501.48719661,0.00028258,3]
[343470668,1732647038824,-500.0,0.00028258,3]
[343470670,1732647038833,-500.0,0.00028258,3]
[343470672,1732647038843,-500.0,0.00028258,3]
[343470674,1732647038853,-420.0,0.00028262,2]
[343470676,1732647038863,-541.8,0.0002835,3]
[343470678,1732647038873,-2878.70650935,0.000284,5]
[343470680,1732647038882,-602.10570158,0.00028507,2]
[343470682,1732647038892,-846.81162419,0.00028653,3]
[343470685,1732647038904,-779.40837581,0.00028653,3]
[343470687,1732647038914,-500.0,0.00028654,3]
[343470688,1732647038924,-1177.11338304,0.00028655,2]
[343470689,1732647038939,-6291.59979,0.00028655,2]
[343470783,1732647040069,-9861.69053673,0.00028655,2]
[343470785,1732647040080,-1626.22,0.0002872,3]
[343470788,1732647040090,-3459.5765799,0.00028721,2]
[343470790,1732647040100,-164.0,0.00028767,2]
[343470792,1732647040109,-602.10570158,0.00029089,2]
[343470794,1732647040119,-152.66,0.000293,31]
[343470796,1732647040129,-152.66,0.000293,31]
[343470798,1732647040139,-152.66,0.000293,31]
[343470800,1732647040148,-152.66,0.000293,31]
[343470802,1732647040158,-152.66,0.000293,31]
[343470803,1732647040168,-152.66,0.000293,31]
[343470805,1732647040178,-152.66,0.000293,31]
[343470808,1732647040194,-152.66,0.000293,31]
[343470809,1732647040203,-152.66,0.000293,31]
[343470811,1732647040213,-150.0,0.00029475,2]
[343470814,1732647040222,-1103.0,0.00029475,2]
[343470815,1732647040232,-2378.0,0.00029475,2]
[343470818,1732647040242,-7929.1081573,0.00029493,2]
[343470820,1732647040251,-1889.64,0.000295,2]
[343470821,1732647040261,-155.57058403,0.00029588,2]
[343470823,1732647040270,-605.51564198,0.00029639,8]
[343470826,1732647040280,-155.57058402,0.00029671,2]
[343470827,1732647040289,-602.10570158,0.00029671,2]
[343470830,1732647040300,-1626.22,0.00029672,3]
[343470832,1732647040310,-152.80100143,0.00029673,5]
[343470833,1732647040319,-500.0,0.00029673,5]
[343470835,1732647040329,-500.0,0.00029677,3]
[343470838,1732647040339,-400.41402505,0.00029686,2]
[343470840,1732647040349,-500.0,0.00029686,2]
[343470842,1732647040359,-277.12400448,0.00029686,2]
[343470843,1732647040369,-252.68578652,0.00029686,2]
[343470846,1732647040379,-231.67113633,0.00029686,2]
[343470848,1732647040388,-500.0,0.00029687,3]
[343470850,1732647040398,-1626.22,0.00029687,3]
[343470852,1732647040408,-1626.22,0.00029687,3]
[343470854,1732647040418,-1626.22,0.00029687,3]
[343470856,1732647040428,-1626.22,0.00029687,3]
[343470858,1732647040443,-1626.22,0.00029687,3]
[343470860,1732647040452,-1626.22,0.00029687,3]
[343470862,1732647040461,-1626.22,0.00029687,3]
[343470864,1732647040471,-1626.22,0.00029687,3]
[343470866,1732647040482,-1626.22,0.00029687,3]
[343470868,1732647040493,-1626.22,0.00029687,3]
[343470870,1732647040503,-1626.22,0.00029687,3]
[343470872,1732647040513,-1626.36,0.00029687,3]
[343470874,1732647040523,-35648.76291046,0.00029688,2]
[343470876,1732647040539,-138536.82855887,0.00029688,2]
[343471103,1732647042946,-503.1606652,0.00028258,3]
[343471105,1732647042957,-47814.40853067,0.00029688,2]
[343471106,1732647042967,-90814.50460368,0.00029688,2]
[343471108,1732647042977,-666.0,0.00029688,2]
[343471110,1732647042986,-162.9,0.000297,2]
[343471112,1732647042995,-288.8234961,0.00029771,2]
[343471114,1732647043005,-577.92464804,0.00029771,2]
[343471116,1732647043014,-577.92464804,0.00029771,2]
[343471117,1732647043023,-653786.98632513,0.00029771,10]
[343471120,1732647043035,-400000.0,0.00029771,10]
[343471122,1732647043047,-191284.687204,0.00029771,10]
[343471124,1732647043059,-16079.24431541,0.00029771,10]
[343471126,1732647043070,-59869.73132256,0.00029771,10]
[343471979,1732647059719,-4393490.75102716,0.00029771,10]
[343471980,1732647059772,-415.862245,0.00029771,10]
[343471981,1732647059784,-473087.70484932,0.00029771,10]
[343471982,1732647059832,-263.87855238,0.00026973,2]
[343471983,1732647059842,-500.0,0.00028258,3]
[343471984,1732647059852,-615.82,0.00029761,10]
[343471985,1732647059862,-3398.76888776,0.00029771,10]
[343472002,1732647755849,163.592183,0.00013973,2]
[343472015,1732648041144,-195.08598739,0.00024351,2]
[343472016,1732648041165,-312.79067075,0.00024351,2]
[343472017,1732648041185,-235.7522136,0.00024451,2]
[343472018,1732648041207,-2890.03356144,0.00024698,2]
[343472019,1732648049110,-2109.96643856,0.00024698,2]
[343472020,1732648049132,-380.0,0.00024813,2]
[343472021,1732648049155,-487.62083402,0.00024848,2]
[343472022,1732648049177,-250.1787858,0.00024948,2]
[343472023,1732648049200,-302.75782099,0.00025,2]
[343472024,1732648049221,-153.54672734,0.00025247,2]
[343472025,1732648049243,-302.75782099,0.0002525,2]
[343472026,1732648049265,-164.556449,0.00025347,2]
[343472027,1732648049288,-487.62083401,0.00025499,2]
[343472028,1732648049310,-302.75782099,0.000255,2]
[343472029,1732648049332,-302.75782099,0.0002575,2]
[343472030,1732648049356,-302.75782099,0.00026,2]
[343472031,1732648049379,-487.62083401,0.0002615,2]
[343472032,1732648049403,-177.08,0.00026217,2]
[343472033,1732648049426,-210.52129162,0.00026217,2]
[343472034,1732648049451,-151.91042521,0.00026223,2]
[343472142,1732648236824,-152.75098743,0.00024451,2]
[343472143,1732648236840,-250.178784,0.00025449,2]
[343472144,1732648236851,-300.0,0.00026225,2]
[343472145,1732648236867,-166.833,0.00026226,12]
[343472146,1732648236877,-300.0,0.00026226,2]
[343472147,1732648236887,-58072.0,0.00026226,2]
[343472148,1732648236898,-24900.0,0.00026227,2]
[343472149,1732648236909,-195.45569,0.00026688,2]
[343472150,1732648236920,-1616.2944,0.00027197,2]
[343472151,1732648236930,-180.6,0.00027387,3]
[343472152,1732648236940,-541.8,0.00027387,3]
[343472153,1732648236950,-1051.17,0.00027387,10]
[343472154,1732648236961,-875.97,0.00027387,10]
[343472155,1732648236970,-729.98,0.00027387,10]
[343472156,1732648236980,-500.0,0.00027396,2]
[343472157,1732648236990,-500.0,0.00027396,2]
[343472158,1732648237000,-500.0,0.00027396,2]
[343472159,1732648237010,-500.0,0.00027396,2]
[343472160,1732648237019,-205.39754336,0.00027396,2]
[343472161,1732648237030,-411.93035901,0.00027396,2]
[343472162,1732648237042,-500.0,0.00027396,2]
[343472163,1732648237052,-491.88399861,0.00027396,2]
[343472164,1732648237062,-500.0,0.00027397,2]
[343472165,1732648237073,-500.0,0.00027397,3]
[343472166,1732648237083,-230.84915327,0.00027397,3]
[343472167,1732648237094,-500.0,0.00027397,3]
[343472168,1732648237106,-500.0,0.00027397,3]
[343472169,1732648237117,-500.0,0.00027397,3]
[343472170,1732648237126,-504.81665035,0.00027397,3]
[343472171,1732648237136,-500.0,0.00027397,3]
[343472172,1732648237145,-524.81603838,0.00027397,3]
[343472173,1732648237154,-502.55508459,0.00027397,3]
[343472174,1732648237164,-500.0,0.00027397,3]
[343472175,1732648237174,-500.0,0.00027397,3]
[343472176,1732648237183,-505.16856385,0.00027397,3]
[343472177,1732648237192,-500.0,0.00027397,3]
[343472178,1732648237202,-500.0,0.00027397,3]
[343472179,1732648237212,-500.0,0.00027397,3]
[343472180,1732648237223,-500.0,0.00027397,3]
[343472181,1732648237233,-473.55281882,0.00027397,3]
[343472182,1732648237244,-500.0,0.00027397,3]
[343472183,1732648237255,-500.0,0.00027397,3]
[343472184,1732648237265,-500.0,0.00027397,3]
[343472185,1732648237276,-158.4662748,0.00027397,3]
[343472186,1732648237285,-158.03443224,0.00027397,3]
[343472187,1732648237295,-273.39119829,0.00027397,3]
[343472188,1732648237305,-500.0,0.00027397,3]
[343472189,1732648237316,-500.0,0.00027397,3]
[343472190,1732648237326,-500.0,0.00027397,3]
[343472191,1732648237336,-503.704228,0.00027397,3]
[343472192,1732648237346,-500.0,0.00027397,3]
[343472193,1732648237360,-500.0,0.00027397,3]
[343472194,1732648237370,-500.0,0.00027397,3]
[343472195,1732648237379,-500.0,0.00027397,3]
[343472196,1732648237390,-383.88074829,0.00027397,3]
[343472197,1732648237399,-500.0,0.00027397,3]
[343472198,1732648237409,-337.88,0.00027397,3]
[343472199,1732648237419,-500.0,0.00027397,3]
[343472200,1732648237428,-614.76,0.00027397,3]
[343472201,1732648237438,-500.0,0.00027397,3]
[343472202,1732648237447,-500.0,0.00027397,3]
[343472203,1732648237458,-500.0,0.00027397,3]
[343472204,1732648237467,-500.0,0.00027397,3]
[343472205,1732648237478,-201.66441231,0.00027397,3]
[343472206,1732648237488,-500.0,0.00027397,3]
[343472207,1732648237498,-500.0,0.00027397,3]
[343472208,1732648237507,-500.0,0.00027397,3]
[343472209,1732648237517,-500.0,0.00027397,3]
[343472210,1732648237526,-500.0,0.00027397,3]
[343472211,1732648237535,-500.0,0.00027397,3]
[343472212,1732648237545,-649.84975934,0.00027397,3]
[343472213,1732648237554,-460.80410085,0.00027397,3]
[343472214,1732648237564,-500.0,0.00027397,3]
[343472215,1732648237574,-500.0,0.00027397,3]
[343472216,1732648237583,-500.0,0.00027397,3]
[343472217,1732648237594,-500.0,0.00027397,3]
[343472218,1732648237604,-500.0,0.00027397,3]
[343472219,1732648237616,-500.0,0.00027397,3]
[343472220,1732648237626,-500.0,0.00027397,3]
[343472221,1732648237635,-332.59589915,0.00027397,3]
[343472222,1732648237645,-2430.55,0.00027397,3]
[343472223,1732648237654,-2430.55,0.00027397,3]
[343472224,1732648237664,-2430.55,0.00027397,3]
[343472225,1732648237674,-500.0,0.00027397,3]
[343472226,1732648237684,-196.45189082,0.00027397,3]
[343472227,1732648237695,-501.99434805,0.00027397,3]
[343472228,1732648237705,-500.0,0.00027397,3]
[343472229,1732648237715,-502.50041175,0.00027397,3]
[343472230,1732648237724,-500.0,0.00027397,3]
[343472231,1732648237735,-481.07182448,0.00027397,3]
[343472232,1732648237746,-504.2337052,0.00027397,3]
[343472233,1732648237756,-500.0,0.00027397,3]
[343472234,1732648237765,-500.0,0.00027397,3]
[343472235,1732648237774,-500.0,0.00027397,3]
[343472236,1732648237783,-500.0,0.00027397,3]
[343472238,1732648237793,-500.0,0.00027397,3]
[343472239,1732648237803,-500.0,0.00027397,3]
[343472240,1732648237814,-500.0,0.00027397,3]
[343472241,1732648237823,-500.0,0.00027397,3]
[343472242,1732648237835,-604.92,0.00027397,3]
[343472243,1732648237846,-500.0,0.00027397,3]
[343472245,1732648237857,-500.0,0.00027397,3]
[343472247,1732648237869,-500.0,0.00027397,3]
[343472249,1732648237878,-500.0,0.00027397,3]
[343472251,1732648237888,-500.0,0.00027397,3]
[343472253,1732648237898,-500.0,0.00027397,3]
[343472254,1732648237907,-500.0,0.00027397,3]
[343472256,1732648237916,-500.0,0.00027397,3]
[343472258,1732648237926,-500.0,0.00027397,3]
[343472260,1732648237936,-500.0,0.00027397,3]
[343472262,1732648237946,-500.0,0.00027397,3]
[343472264,1732648237955,-414.7668754,0.00027397,3]
[343472266,1732648237965,-500.0,0.00027397,3]
[343472268,1732648237975,-500.0,0.00027397,3]
[343472270,1732648237985,-500.0,0.00027397,3]
[343472272,1732648237995,-500.0,0.00027397,3]
[343472274,1732648238004,-500.0,0.00027397,3]
[343472276,1732648238013,-500.0,0.00027397,3]
[343472278,1732648238023,-500.0,0.00027397,3]
[343472280,1732648238033,-500.0,0.00027397,3]
[343472282,1732648238042,-500.0,0.00027397,3]
[343472284,1732648238052,-290.41999079,0.00027397,3]
[343472286,1732648238062,-500.0,0.00027397,3]
[343472288,1732648238071,-500.0,0.00027397,3]
[343472290,1732648238081,-500.0,0.00027397,3]
[343472292,1732648238091,-223.07183195,0.00027397,3]
[343472294,1732648238101,-1743.56,0.00027397,3]
[343472295,1732648238115,-1743.56,0.00027397,3]
[343472298,1732648238126,-1743.56,0.00027397,3]
[343472300,1732648238135,-1743.56,0.00027397,3]
[343472302,1732648238145,-1743.56,0.00027397,3]
[343472303,1732648238154,-500.0,0.00027397,3]
[343472305,1732648238164,-187.04,0.00027397,3]
[343472307,1732648238174,-500.0,0.00027397,3]